bitfinex-derivatives/quotes_ETHF0:USTF0_20241008
["timestamp","ask_amount","ask_price","bid_price","bid_amount"]
[1728396805192,3.61786,2439.5,2439.1,1.26857589]
[1728396805489,3.2078,2439.5,2439.1,0.421]
[1728396806083,3.61786,2439.5,2439.1,0.421]
[1728396807793,3.2078,2439.5,2439.1,0.421]
[1728396808093,0.41008,2439.4,2439.1,0.421]
[1728396809387,0.41009,2439.3,2439.1,0.421]
[1728396809593,0.41008,2439.4,2439.1,0.421]
[1728396809984,3.2078,2439.5,2439.1,0.421]
[1728396810190,3.2078,2439.2,2439.1,0.421]
[1728396810492,3.61791,2439.2,2439.1,0.421]
[1728396810693,3.2078,2439.2,2439.1,0.421]
[1728396810895,3.2078,2439.2,2439.1,4.521]
[1728396811690,3.2078,2439.2,2439.1,0.421]
[1728396813898,3.61791,2439.2,2439.1,0.421]
[1728396816395,3.2078,2439.2,2438.9,0.8668405]
[1728396816595,0.41014,2439.1,2438.9,0.8668405]
[1728396816798,0.41014,2439.0,2438.9,0.4196]
[1728396817894,0.41013,2439.1,2438.9,0.4196]
[1728396818090,3.2078,2439.2,2438.9,0.4196]
[1728396818494,0.41013,2439.1,2438.9,0.4196]
[1728396818798,0.41014,2439.0,2438.9,0.4196]
[1728396819795,3.2078,2439.9,2438.9,17.6674]
[1728396820090,1.02503,2439.8,2438.9,8.5928]
[1728396820294,4.135,2440.1,2439.0,0.41013]
[1728396820295,0.4101,2439.3,2439.0,0.41013]
[1728396820500,3.2078,2439.4,2438.9,0.4196]
[1728396820896,3.2078,2439.4,2439.2,0.4101]
[1728396821093,3.2078,2439.4,2438.9,0.4196]
[1728396821297,3.61782,2439.8,2439.5,0.41005]
[1728396821493,3.61782,2439.8,2439.6,0.83644]
[1728396821696,3.2078,2439.8,2439.6,0.83644]
[1728396821898,3.2078,2439.8,2439.6,0.4264]
[1728396822191,0.41002,2439.7,2439.6,0.4264]
[1728396822402,3.61782,2439.8,2439.6,0.4264]
[1728396822707,0.41002,2439.7,2439.6,0.4264]
[1728396823199,3.61782,2439.8,2439.6,0.4264]
[1728396823802,3.2078,2439.8,2439.6,0.4264]
[1728396824002,0.41002,2439.7,2439.6,0.4264]
[1728396824203,3.61782,2439.8,2439.6,0.4264]
[1728396825701,3.61782,2439.8,2439.6,0.83644]
[1728396825904,0.41002,2439.7,2439.6,0.4264]
[1728396826305,0.41005,2439.6,2439.3,0.4284]
[1728396826505,0.41005,2439.6,2439.4,0.41006]
[1728396826706,4.23283,2439.8,2439.0,0.8018]
[1728396827013,3.61792,2439.2,2439.0,0.82624]
[1728396827310,0.41013,2439.1,2439.0,0.4161]
[1728396828003,3.61792,2439.2,2439.0,0.82624]
[1728396828705,3.2078,2439.2,2439.0,0.4161]
[1728396828903,0.41013,2439.1,2439.0,0.4161]
[1728396830700,1.02536,2439.0,2438.6,0.3936]
[1728396830906,1.02546,2438.8,2438.4,0.41024]
[1728396831104,3.2078,2438.5,2438.4,0.41024]
[1728396831401,3.2078,2438.5,2438.2,0.4202]
[1728396831797,3.2078,2438.5,2438.2,0.41027]
[1728396831997,1.02554,2438.6,2438.2,0.41027]
[1728396831998,1.0255,2438.7,2438.2,0.45821184]
[1728396832204,0.41024,2438.4,2438.2,0.41027]
[1728396832403,3.2078,2438.5,2438.1,0.3936]
[1728396832808,0.41026,2438.4,2438.2,0.41027]
[1728396833006,3.2078,2438.5,2438.1,0.84393171]
[1728396833206,3.2078,2438.5,2438.1,1.25421171]
[1728396833507,0.41026,2438.3,2438.1,1.25421171]
[1728396833705,3.2078,2438.5,2438.1,0.84393171]
[1728396834011,0.41028,2438.2,2438.1,0.3936]
[1728396834807,1.02562,2438.4,2437.9,0.4252]
[1728396835013,0.4103,2438.1,2437.9,0.83552]
[1728396835512,0.41031,2438.1,2437.9,0.83552]
[1728396835904,0.41031,2438.1,2437.7,4.07353867]
[1728396836103,0.41037,2437.7,2437.5,0.41039]
[1728396836310,3.61819,2437.6,2437.4,0.41041]
[1728396836512,0.4104,2437.5,2437.3,0.81182]
[1728396836714,3.2078,2437.6,2437.0,0.4069]
[1728396837014,3.2078,2437.3,2437.2,0.41045]
[1728396837512,3.2078,2437.3,2437.0,0.4069]
[1728396837708,0.41046,2437.2,2436.9,0.41049]
[1728396837916,3.2078,2437.0,2436.9,0.41049]
[1728396838108,3.2078,2437.0,2436.8,0.4105]
[1728396838511,3.2078,2437.0,2436.9,0.4105]
[1728396839016,3.2078,2437.0,2436.6,0.82870361]
[1728396839211,3.2078,2437.0,2436.7,0.41052]
[1728396839412,3.2078,2437.0,2436.8,0.41051]
[1728396839714,3.2078,2437.0,2436.9,0.4105]
[1728396840412,3.2078,2437.4,2436.6,0.82870361]
[1728396840616,3.2078,2437.4,2437.3,0.41043]
[1728396841712,0.41034,2437.9,2437.6,0.41037]
[1728396841923,3.2078,2437.7,2437.6,0.41037]
[1728396842124,3.2078,2437.7,2437.5,0.41039]
[1728396842626,3.2078,2437.7,2437.3,0.8121]
[1728396842822,3.61812,2438.0,2437.8,0.41034]
[1728396843020,3.2078,2438.0,2437.9,0.41033]
[1728396848623,7.3094,2438.0,2437.4,0.389]
[1728396848923,3.2078,2438.0,2437.4,0.389]
[1728396849128,0.41035,2437.8,2437.5,0.4104]
[1728396849315,0.41037,2437.7,2437.4,0.4104]
[1728396849523,3.61817,2437.7,2437.5,0.41039]
[1728396849816,3.61817,2437.7,2437.4,0.4104]
[1728396850019,0.41039,2437.6,2437.3,1.22252]
[1728396850425,0.41043,2437.3,2437.1,0.41046]
[1728396850928,0.41043,2437.3,2436.9,0.4105]
[1728396851225,4.23385,2437.4,2436.8,0.84917039]
[1728396851423,3.2078,2437.1,2436.8,0.80581]
[1728396851619,3.2078,2437.1,2436.8,0.3953]
[1728396851825,0.41052,2436.8,2436.6,0.82934]
[1728396852025,0.41054,2436.7,2436.4,0.41057]
[1728396852329,3.2078,2436.5,2436.1,3.6266]
[1728396852930,3.2078,2436.5,2436.3,0.41059]
[1728396853124,3.2078,2436.5,2436.1,3.6266]
[1728396853319,3.2078,2436.2,2436.0,0.44011946]
[1728396853533,3.2078,2436.2,2436.1,0.41063]
[1728396853729,3.2078,2436.5,2435.9,0.3953]
[1728396854032,3.61837,2436.5,2436.2,0.41061]
[1728396854229,3.2078,2436.5,2435.9,0.85436618]
[1728396854533,3.61842,2436.2,2435.9,1.26502618]
[1728396854829,0.41065,2436.0,2435.9,0.3953]
[1728396855034,0.41064,2436.1,2435.8,0.41067]
[1728396855235,3.2078,2436.2,2435.6,3.2078]
[1728396855536,0.41064,2436.1,2435.8,0.41068]
[1728396855734,0.41066,2436.0,2435.7,0.41069]
[1728396856423,3.2078,2436.2,2435.5,0.8]
[1728396856424,0.4107,2435.7,2435.5,0.4105]
[1728396856622,3.2078,2435.9,2435.1,0.4241]
[1728396856834,3.2078,2435.9,2435.1,1.27441296]
[1728396857132,3.2078,2435.6,2435.4,0.41075]
[1728396857333,3.2078,2435.6,2435.1,1.27441296]
[1728396857528,3.2078,2435.6,2435.1,0.85031296]
[1728396857728,3.2078,2435.6,2435.4,0.41074]
[1728396858130,3.2078,2435.6,2435.5,0.41073]
[1728396858329,3.2078,2435.9,2435.8,0.41068]
[1728396858529,3.2078,2435.9,2435.7,0.41068]
[1728396858730,3.2078,2435.9,2435.3,1.02688]
[1728396858931,3.2078,2435.9,2435.4,0.4241]
[1728396859128,3.2078,2435.9,2435.5,0.41073]
[1728396859332,3.2078,2435.9,2435.8,0.41068]
[1728396860133,3.2078,2435.9,2435.4,0.4241]
[1728396860328,3.61847,2435.9,2435.6,0.41071]
[1728396860536,3.61847,2435.9,2435.1,0.3922]
[1728396860537,5.13231,2435.8,2435.1,0.3922]
[1728396860730,3.61852,2435.6,2435.2,0.41077]
[1728396861036,3.61852,2435.6,2435.1,0.3922]
[1728396861235,3.61852,2435.6,2435.3,0.41077]
[1728396861738,3.2078,2435.6,2435.1,0.3922]
[1728396862439,3.2078,2435.6,2435.4,0.41074]
[1728396862825,3.2078,2435.6,2435.5,0.41073]
[1728396863025,3.2078,2436.0,2435.1,0.3922]
[1728396863226,3.2078,2436.0,2435.8,0.41067]
[1728396863431,3.61845,2436.0,2435.7,0.41069]
[1728396863736,3.2078,2436.0,2435.4,1.02688]
[1728396863933,3.2078,2436.0,2435.9,0.41066]
[1728396864627,3.2078,2436.0,2435.8,0.41067]
[1728396864936,3.2078,2436.0,2435.9,0.41066]
[1728396865726,3.6059,2436.9,2435.9,10.1048]
[1728396865926,3.6059,2436.9,2436.0,1.85283]
[1728396866131,3.2078,2436.9,2436.0,0.8262]
[1728396866332,3.2078,2436.9,2436.8,0.41051]
[1728396866533,3.2078,2437.2,2436.5,1.02642]
[1728396866837,0.41048,2437.0,2436.7,0.41052]
[1728396867337,0.41047,2437.1,2436.8,0.4105]
[1728396867639,0.41052,2436.8,2436.5,0.41055]
[1728396868439,3.2078,2436.9,2436.2,0.4186]
[1728396868737,3.61831,2436.9,2436.3,1.0265]
[1728396868938,3.2078,2436.9,2436.7,0.41053]
[1728396869137,3.6183,2436.9,2436.7,0.41053]
[1728396869339,3.6183,2436.9,2436.3,1.0265]
[1728396869340,3.2078,2436.9,2436.3,1.0265]
[1728396869536,3.2078,2436.9,2436.8,0.41051]
[1728396869734,3.2078,2436.9,2436.4,1.02644]
[1728396869934,3.61826,2437.2,2436.9,0.41049]
[1728396870239,3.2078,2437.2,2436.5,1.0264]
[1728396870439,0.41048,2437.1,2436.8,0.41051]
[1728396870633,3.61826,2437.2,2436.9,0.41049]
[1728396870841,3.2078,2437.2,2436.5,1.0264]
[1728396871140,3.2078,2437.2,2437.1,0.41046]
[1728396871738,7.72145,2437.2,2437.0,0.41047]
[1728396871941,3.2078,2437.2,2437.1,0.41046]
[1728396872844,0.41042,2437.4,2437.2,0.41043]
[1728396873044,0.41043,2437.3,2437.1,0.41045]
[1728396873245,0.41047,2437.1,2436.9,0.41049]
[1728396873536,3.2078,2437.2,2436.7,1.44212]
[1728396873738,3.2078,2437.2,2437.1,0.41046]
[1728396873939,3.61825,2437.2,2437.0,0.41046]
[1728396874138,3.61825,2437.2,2436.9,0.41048]
[1728396874340,3.2078,2437.2,2436.7,0.4158]
[1728396874544,0.41047,2437.1,2436.9,0.41049]
[1728396874843,1.02623,2437.0,2436.4,3.2078]
[1728396875038,0.41054,2436.7,2436.5,0.41056]
[1728396875242,3.61831,2436.9,2436.6,0.41054]
[1728396875443,3.2078,2437.2,2436.4,4.23423]
[1728396875638,6.41048,2437.1,2436.8,0.4105]
[1728396875840,0.41048,2437.0,2436.8,0.4105]
[1728396876246,4.23393,2437.2,2436.5,0.8207]
[1728396876545,3.2078,2436.9,2436.5,0.8207]
[1728396876745,0.41053,2436.7,2436.5,1.23126]
[1728396876948,0.41053,2436.7,2436.5,0.81266]
[1728396877142,1.02642,2436.5,2435.8,0.8207]
[1728396877338,3.2078,2436.1,2435.8,0.8207]
[1728396877543,3.2078,2436.1,2435.8,0.4021]
[1728396877841,0.41066,2436.0,2435.8,0.4021]
[1728396878041,3.2078,2436.1,2435.8,0.4021]
[1728396878345,0.41065,2436.0,2435.8,0.81277]
[1728396878547,3.2078,2436.1,2435.8,0.4021]
[1728396878939,7.3476,2436.4,2435.9,0.41066]
[1728396879143,0.41064,2436.1,2435.8,0.81277]
[1728396879343,0.41064,2436.1,2435.9,0.41066]
[1728396879545,3.2078,2436.1,2435.8,0.81278]
[1728396880048,0.41066,2435.9,2435.8,0.4021]
[1728396881138,4.1056,2435.9,2435.6,0.41072]
[1728396881343,0.41068,2435.9,2435.4,1.2024]
[1728396881743,0.41068,2435.9,2435.7,0.4107]
[1728396883647,0.41068,2435.9,2435.4,1.2024]
[1728396883648,0.4107,2435.7,2435.5,0.41073]
[1728396883853,1.02664,2436.0,2435.4,0.8162]
[1728396884052,0.4107,2435.7,2435.5,0.41073]
[1728396884249,3.2078,2435.8,2435.4,1.26189219]
[1728396884453,3.61849,2435.8,2435.6,0.41072]
[1728396884652,3.61849,2435.8,2435.5,0.41072]
[1728396884855,3.2078,2435.8,2435.6,0.4107]
[1728396885053,3.2078,2435.8,2435.4,1.26189219]
[1728396885255,3.2078,2435.8,2435.7,0.4107]
[1728396886159,0.4107,2435.7,2435.5,0.41073]
[1728396886957,0.41073,2435.5,2435.4,0.4027]
[1728396887159,0.41076,2435.4,2435.2,0.41078]
[1728396887354,3.2078,2435.5,2435.1,0.3916]
[1728396887552,0.41078,2435.3,2435.1,0.3916]
[1728396887752,0.41078,2435.2,2435.1,0.3916]
[1728396888058,3.2078,2435.5,2435.1,0.80239]
[1728396888355,0.41077,2435.3,2435.1,0.80239]
[1728396888557,0.41076,2435.4,2435.1,0.80239]
[1728396888954,3.61854,2435.5,2435.1,0.3916]
[1728396889154,0.41076,2435.4,2435.1,0.3916]
[1728396889352,3.2078,2435.5,2435.1,0.3916]
[1728396889557,3.2078,2435.5,2435.2,0.41077]
[1728396889758,3.61854,2435.5,2435.3,0.41076]
[1728396889961,3.2078,2435.5,2435.4,0.41075]
[1728396891355,3.2078,2435.5,2435.1,0.3916]
[1728396891561,0.41075,2435.4,2435.2,0.41078]
[1728396891857,3.2078,2435.5,2435.1,0.8024]
[1728396892058,3.2078,2435.5,2435.3,0.41076]
[1728396892251,3.2078,2435.5,2435.2,0.41077]
[1728396892453,0.41075,2435.4,2435.2,0.41078]
[1728396893459,3.2078,2435.5,2435.1,0.3916]
[1728396893655,0.41075,2435.4,2435.2,0.41078]
[1728396894160,3.2078,2435.5,2435.4,0.41075]
[1728396894358,3.2078,2435.5,2435.1,1.4186]
[1728396894359,3.61849,2435.8,2435.6,0.41071]
[1728396894657,3.2078,2435.8,2435.7,0.4107]
[1728396894857,0.41067,2435.9,2435.7,0.4107]
[1728396895061,0.41066,2436.0,2435.8,0.41068]
[1728396895268,4.96663,2436.0,2435.1,3.5994]
[1728396895451,0.41071,2435.7,2435.5,0.41073]
[1728396895951,3.2078,2435.8,2435.1,1.41861]
[1728396896154,3.2078,2436.1,2435.1,0.3916]
[1728396896350,3.2078,2436.1,2435.4,1.02688]
[1728396896556,3.2078,2436.1,2435.5,0.3874]
[1728396896754,1.0265,2436.3,2435.5,1.41424]
[1728396896958,3.61844,2436.1,2435.9,0.41066]
[1728396897159,3.2078,2436.1,2435.7,0.4143]
[1728396897353,3.2078,2436.4,2435.7,1.44105]
[1728396897561,0.4106,2436.3,2436.1,0.41062]
[1728396898067,0.41064,2436.1,2435.9,0.41066]
[1728396898263,0.41064,2436.1,2435.6,4.64889]
[1728396898467,0.41065,2436.0,2435.8,0.41067]
[1728396898662,3.61845,2436.0,2435.8,0.41067]
[1728396899170,0.41064,2436.1,2435.9,0.41066]
[1728396899678,0.41063,2436.2,2435.6,1.88273593]
[1728396899970,4.2343,2436.3,2435.6,1.88273593]
[1728396900170,0.41065,2436.1,2435.6,1.88273593]
[1728396900468,3.2078,2436.0,2435.4,3.6169]
[1728396900668,0.41069,2435.8,2435.6,0.41071]
[1728396900872,3.2078,2436.0,2435.4,5.08242342]
[1728396901058,3.2078,2436.0,2435.4,4.05554342]
[1728396901461,0.41067,2435.9,2435.7,0.41069]
[1728396901663,0.41071,2435.7,2435.5,0.41073]
[1728396901860,0.41073,2435.5,2435.4,3.6169]
[1728396902067,0.41072,2435.6,2435.4,4.02764]
[1728396902371,3.94,2435.9,2435.4,3.2078]
[1728396902570,0.41073,2435.5,2435.4,3.2078]
[1728396902770,1.02676,2435.7,2435.4,3.2078]
[1728396903073,0.41073,2435.6,2435.4,3.61854]
[1728396903369,1.02676,2435.7,2435.4,3.2078]
[1728396903565,0.41073,2435.5,2435.4,3.2078]
[1728396903764,1.02684,2435.5,2434.8,0.81614]
[1728396903964,3.61861,2435.1,2434.8,0.81614]
[1728396904164,0.41083,2435.0,2434.8,0.4053]
[1728396904369,3.61861,2435.1,2434.8,0.81614]
[1728396904765,3.61861,2435.1,2434.9,0.41083]
[1728396904972,3.2078,2435.1,2434.9,0.41083]
[1728396905273,3.2078,2435.1,2434.8,0.4053]
[1728396905274,4.1064,2435.0,2434.8,0.4053]
[1728396905468,3.2078,2435.1,2434.8,0.4053]
[1728396905871,0.41077,2435.3,2435.1,0.41079]
[1728396906078,3.2078,2435.4,2434.8,1.84362]
[1728396906277,3.2078,2435.4,2435.2,0.41078]
[1728396906579,3.2078,2435.4,2434.8,1.84362]
[1728396906781,3.2078,2435.4,2435.3,0.41077]
[1728396907481,0.41077,2435.3,2435.1,0.41079]
[1728396907675,3.61856,2435.4,2435.2,0.41077]
[1728396907870,0.41077,2435.3,2434.8,0.8165]
[1728396908075,3.2078,2435.1,2434.8,1.22734]
[1728396908281,3.61861,2435.1,2434.8,1.22734]
[1728396908480,3.2078,2435.1,2434.8,0.8165]
[1728396909082,0.41077,2435.3,2435.0,0.4108]
[1728396909577,0.41079,2435.2,2434.9,0.41082]
[1728396909784,0.41078,2435.3,2435.0,0.41081]
[1728396910180,0.41078,2435.3,2434.8,0.8165]
[1728396910376,3.2078,2435.4,2435.1,0.4108]
[1728396910578,3.2078,2435.4,2434.9,1.02709]
[1728396910782,3.61855,2435.4,2435.2,0.41077]
[1728396910980,3.2078,2435.4,2434.9,0.41082]
[1728396911175,0.41082,2435.0,2434.8,0.81615]
[1728396911479,0.41082,2435.0,2434.8,0.4053]
[1728396911675,0.41083,2434.9,2434.8,0.4053]
[1728396912077,0.41082,2435.0,2434.7,0.4113]
[1728396912280,3.61865,2434.8,2434.7,0.4113]
[1728396912680,0.4109,2434.5,2434.3,0.4066]
[1728396912982,0.4109,2434.5,2433.7,4.23538]
[1728396912983,0.41093,2434.3,2434.1,0.81006]
[1728396913170,3.94,2434.4,2434.1,0.3991]
[1728396913372,3.2078,2434.2,2434.1,0.3991]
[1728396913577,3.94,2434.4,2434.1,0.3991]
[1728396913772,0.41094,2434.3,2434.1,0.3991]
[1728396914085,0.41094,2434.3,2434.1,0.81006]
[1728396914279,0.41094,2434.3,2434.1,0.3991]
[1728396914480,0.411,2434.0,2433.8,0.4066]
[1728396914684,3.94,2434.0,2433.8,0.4066]
[1728396914984,8.4598,2434.0,2433.7,0.4047]
[1728396915182,3.94,2434.0,2433.8,0.41101]
[1728396915484,0.41098,2434.1,2433.9,0.411]
[1728396915677,3.61876,2434.2,2434.0,0.41098]
[1728396915878,0.41097,2434.1,2433.9,0.41099]
[1728396916182,3.2078,2434.2,2433.7,0.4047]
[1728396916377,3.61881,2433.9,2433.7,0.81573]
[1728396916778,3.61881,2433.9,2433.8,0.41102]
[1728396916978,3.2078,2433.9,2433.8,0.41102]
[1728396917179,7.3166,2433.9,2433.7,0.4047]
[1728396917486,3.2078,2433.9,2433.8,0.41102]
[1728396917681,3.61874,2434.3,2433.8,0.41102]
[1728396917982,3.2078,2434.3,2434.2,0.41095]
[1728396918183,7.3158,2434.3,2433.7,0.4047]
[1728396918383,0.41097,2434.2,2434.0,0.41098]
[1728396918685,0.41098,2434.1,2433.9,0.41099]
[1728396918979,3.2078,2434.3,2433.7,0.4047]
[1728396919183,0.41102,2433.8,2433.7,0.4047]
[1728396920776,3.2078,2434.0,2433.7,0.81573]
[1728396920978,0.41101,2433.9,2433.7,0.81573]
[1728396921689,3.6188,2434.0,2433.8,0.41102]
[1728396922086,3.2078,2434.0,2433.9,0.411]
[1728396922287,0.411,2433.9,2433.7,0.41103]
[1728396922482,3.6188,2434.0,2433.8,0.41101]
[1728396922886,4.1088,2433.9,2433.8,0.41102]
[1728396923088,3.2078,2434.3,2433.9,4.1088]
[1728396923287,3.2078,2434.3,2433.7,3.2078]
[1728396923288,0.41091,2434.5,2434.3,0.41092]
[1728396923487,3.6187,2434.6,2434.4,0.41092]
[1728396923687,7.1478,2434.6,2434.0,1.80786]
[1728396923889,7.1478,2434.6,2434.0,0.7804]
[1728396924084,0.41097,2434.1,2434.0,0.7804]
[1728396924390,0.41101,2433.9,2433.7,3.61883]
[1728396924583,0.41102,2433.8,2433.7,3.2078]
[1728396924789,0.41102,2433.8,2433.5,0.7804]
[1728396925092,3.61879,2434.0,2433.8,0.41101]
[1728396925291,40.8,2434.2,2433.5,1.80807]
[1728396925488,3.2078,2434.3,2433.6,2.05528]
[1728396925693,0.41094,2434.3,2434.1,0.41096]
[1728396926093,3.2078,2434.3,2433.7,1.02756]
[1728396926294,3.61874,2434.3,2434.1,0.41096]
[1728396926487,3.2078,2434.3,2433.5,0.7804]
[1728396926682,3.2078,2434.3,2434.2,0.41095]
[1728396927591,3.94,2434.7,2434.2,0.41095]
[1728396927787,3.94,2434.7,2434.1,1.82461]
[1728396927982,4.35087,2434.7,2434.1,1.82461]
[1728396928183,3.94,2434.7,2434.5,0.4109]
[1728396928384,3.2078,2434.8,2434.1,0.7972]
[1728396928687,3.2078,2435.1,2435.0,0.41082]
[1728396928888,3.2078,2435.1,2434.9,1.02708]
[1728396929094,0.4108,2435.1,2435.0,0.3979]
[1728396929286,7.3142,2435.1,2434.5,3.2078]
[1728396929490,3.61861,2435.1,2434.8,0.41084]
[1728396929793,3.2078,2435.1,2435.0,0.41082]
[1728396930292,3.61852,2435.6,2435.0,0.41082]
[1728396930487,3.2078,2435.6,2435.4,0.41075]
[1728396930688,3.2078,2435.6,2435.4,0.41074]
[1728396930889,4.1056,2435.5,2435.2,0.4039]
[1728396931085,3.61853,2435.6,2435.3,0.41076]
[1728396931290,0.41077,2435.3,2435.2,0.4039]
[1728396931490,4.2346,2435.6,2435.2,0.4039]
[1728396931491,0.41076,2435.4,2435.2,0.4039]
[1728396931887,3.94,2435.5,2435.2,0.4039]
[1728396932089,0.41075,2435.4,2435.2,0.4039]
[1728396932401,0.41075,2435.4,2435.2,0.81468]
[1728396932597,3.94,2435.5,2435.2,0.4039]
[1728396932794,3.94,2435.5,2434.9,0.41082]
[1728396932795,3.2078,2435.3,2434.9,0.41082]
[1728396933093,0.4108,2435.1,2434.9,0.41082]
[1728396933298,3.2078,2435.0,2434.8,0.4169]
[1728396933688,3.2078,2435.0,2434.8,0.82773]
[1728396933894,7.3465,2435.5,2435.1,0.4108]
[1728396934292,7.3465,2435.5,2434.8,0.4169]
[1728396934496,0.41079,2435.2,2435.0,0.41081]
[1728396934897,7.3465,2435.5,2434.8,0.4169]
[1728396935096,3.61854,2435.5,2435.3,0.41076]
[1728396935298,4.1064,2435.4,2435.3,0.41076]
[1728396936090,4.1064,2435.4,2434.8,1.44402]
[1728396936296,7.1478,2435.5,2435.3,0.41075]
[1728396936499,7.1478,2435.5,2435.0,1.02704]
[1728396936702,7.1478,2435.5,2435.4,0.41075]
[1728396936901,11.66494,2435.5,2435.2,0.41077]
[1728396937098,3.94,2435.5,2435.4,0.41075]
[1728396937300,3.94,2435.5,2435.0,1.02704]
[1728396937602,3.94,2435.5,2434.8,4.65181]
[1728396937901,0.41076,2435.4,2434.8,4.65181]
[1728396938202,0.41076,2435.4,2434.8,4.65182]
[1728396938504,7.55854,2435.5,2435.2,0.41078]
[1728396938695,3.2078,2435.5,2434.9,1.02706]
[1728396938895,0.41072,2435.6,2435.1,1.02699]
[1728396939092,0.41074,2435.5,2435.2,0.41077]
[1728396939292,0.41071,2435.7,2435.4,0.41075]
[1728396939604,47.9478,2435.8,2434.8,5.09908865]
[1728396939605,0.41073,2435.6,2434.8,5.09908865]
[1728396939795,48.97452,2435.8,2435.4,0.41074]
[1728396940099,48.97452,2435.8,2435.4,0.41075]
[1728396940100,0.41072,2435.6,2435.4,0.41075]
[1728396940301,6.95913719,2436.1,2435.1,3.2078]
[1728396940498,4.135,2436.4,2435.3,3.2078]
[1728396940698,41.82638,2436.6,2436.2,0.41061]
[1728396940905,41.82638,2436.6,2435.7,1.02675]
[1728396940906,0.41056,2436.5,2436.3,0.41059]
[1728396941200,40.8,2436.6,2436.0,0.4138]
[1728396941201,3.2078,2436.4,2436.0,0.4138]
[1728396941597,0.41062,2436.2,2436.0,0.4138]
[1728396941792,0.41063,2436.2,2436.0,0.4138]
[1728396942102,0.41063,2436.2,2436.0,0.82444]
[1728396942300,3.2078,2436.4,2436.0,0.4138]
[1728396942498,0.41063,2436.1,2436.0,0.4138]
[1728396942699,0.41062,2436.2,2436.0,0.82444]
[1728396942997,1.0265,2436.3,2435.6,3.2078]
[1728396943200,3.2078,2436.1,2435.6,0.4269]
[1728396943402,3.2078,2435.8,2435.6,0.4269]
[1728396943704,3.2078,2435.8,2435.5,0.4083]
[1728396943705,0.41071,2435.7,2435.5,0.41073]
[1728396944097,3.2078,2435.8,2435.3,0.4269]
[1728396944302,0.41071,2435.7,2435.5,0.41072]
[1728396944499,3.2078,2435.8,2435.7,0.4107]
[1728396944905,0.41065,2436.0,2435.8,0.41067]
[1728396945203,3.2078,2436.2,2435.6,1.0268]
[1728396945506,3.2078,2436.2,2435.5,1.02684]
[1728396945507,0.41065,2436.0,2435.7,0.4009]
[1728396945704,4.23437,2436.2,2435.7,0.4009]
[1728396945907,0.41065,2436.0,2435.9,0.41066]
[1728396946100,0.41065,2436.0,2435.7,0.4009]
[1728396946303,3.61845,2436.0,2435.8,0.41067]
[1728396946501,3.61845,2436.0,2435.9,0.41066]
[1728396946699,0.41067,2435.9,2435.7,0.41068]
[1728396946899,0.41068,2435.8,2435.7,0.41069]
[1728396947100,0.41068,2435.8,2435.4,1.42707]
[1728396947404,3.61851,2435.7,2435.5,0.41072]
[1728396947905,3.2078,2435.7,2435.6,0.41072]
[1728396948205,0.41069,2435.8,2435.7,0.4107]
[1728396948512,0.41069,2435.8,2435.6,0.4107]
[1728396948699,0.41069,2435.8,2435.4,0.4002]
[1728396948700,0.41067,2435.9,2435.8,0.41068]
[1728396948900,0.41067,2435.9,2435.7,0.41069]
[1728396949101,3.61849,2435.8,2435.7,0.4107]
[1728396949308,3.2078,2435.8,2435.7,0.4107]
[1728396949906,0.41065,2436.0,2435.9,0.41066]
[1728396950301,1.02668,2435.9,2435.4,0.4002]
[1728396950503,3.2078,2435.7,2435.4,0.4002]
[1728396950704,3.61851,2435.7,2435.6,0.41072]
[1728396950905,0.41071,2435.7,2435.6,0.41072]
[1728396951408,1.0268,2435.6,2435.3,0.8278]
[1728396951611,3.61855,2435.4,2435.3,0.4269]
[1728396952010,0.41077,2435.3,2435.1,0.41079]
[1728396952507,0.41078,2435.2,2435.0,0.4041]
[1728396952715,4.23469,2435.4,2435.0,0.4041]
[1728396952716,0.41077,2435.3,2435.2,0.41078]
[1728396953009,0.41077,2435.3,2435.0,0.4041]
[1728396953215,3.2078,2435.4,2435.0,0.4041]
[1728396953416,3.2078,2435.4,2435.1,0.41079]
[1728396953711,0.4108,2435.1,2435.0,0.4041]
[1728396954009,0.41087,2434.7,2434.5,0.4109]
[1728396954314,3.61866,2434.8,2434.6,0.41087]
[1728396954506,0.41083,2434.9,2434.7,0.41086]
[1728396954706,0.41083,2434.9,2434.6,0.41087]
[1728396955225,0.41085,2434.8,2434.6,0.41087]
[1728396955513,3.2078,2434.8,2434.5,0.81729]
[1728396955907,3.61866,2434.8,2434.6,0.41088]
[1728396956108,3.2078,2434.8,2434.5,0.81729]
[1728396956411,3.2078,2434.8,2434.5,0.4064]
[1728396956818,0.41088,2434.6,2434.5,0.4064]
[1728396957115,0.41097,2434.1,2433.9,0.41099]
[1728396957314,0.411,2433.9,2433.8,0.3996]
[1728396957512,3.6188,2433.9,2433.8,0.3996]
[1728396957707,13.3166,2433.9,2433.0,3.2078]
[1728396957910,3.2078,2433.3,2432.7,0.3996]
[1728396958108,0.41119,2432.8,2432.7,0.3996]
[1728396958320,3.2078,2433.0,2432.7,0.3996]
[1728396958712,3.2078,2433.0,2432.7,0.81079]
[1728396958907,3.2078,2433.0,2432.8,0.41118]
[1728396959114,4.96769,2433.5,2432.7,0.3996]
[1728396959115,3.6189,2433.4,2433.0,0.41115]
[1728396959411,3.2078,2433.1,2432.0,3.6666261]